Cogmind - Beta 14 @@@ ROGUE MODE // 2025.03.06 @ 14:40:29 Player: uvd Result: Destroyed by S-10 Pest with Light Assault Rifle Performance ------------- Evolutions (2) 1000 Regions Visited (6) 1200 Robots Destroyed (29) 145 Value Destroyed (738) 738 Prototype IDs (23) 460 Alien Tech Used (0) 0 Bonus (300) 300 TOTAL SCORE: 3843 Bonus ------- Aligned with FarCom 300 Cogmind --------- Core Integrity 0/550 Matter 209/300 Energy 13/275 System Corruption 1% Temperature Cool (0) Movement Core (50) Location -8/Materials Parts ------- > --- POWER (1) -------- Deuterium Engine > --- PROPULSION (3) --- (None) > --- UTILITY (4) ------ Advanced Weight Redist. System Visual Processing Unit Backup Plating I > --- WEAPON (3) ------- (None) > --- INVENTORY (5) ---- (None) Peak State ------------ > --- POWER ------------ Deuterium Engine > --- PROPULSION ------- Compact Wheel Armored Wheel > --- UTILITY ---------- Advanced Weight Redist. System Visual Processing Unit Targeting Computer > --- WEAPON ----------- AWS/Autocannon > --- INVENTORY -------- Nuclear Core Medium Laser [Rating: 42] Favorites ----------- Power Light Ion Engine Engine Light Ion Engine Power Core Nuclear Core Propulsion Flight Unit Leg Aluminum Leg Wheel Armored Wheel Hover Unit Backup Propulsion I Flight Unit Flight Unit Utility ECM Suite Device ECM Suite Storage Small Storage Unit Processor Visual Processing Unit Protection Backup Plating I Weapon Mini Grenade Launcher Energy Gun Medium Laser Energy Cannon EM Pulse Cannon Ballistic Gun Light Assault Rifle Ballistic Cannon AWS/Autocannon Launcher Mini Grenade Launcher Special Weapon Welding Torch Build | -11 -10 -9 -9 -9 -8 -8 ------- Run | Yrd Mat Mat Min Exi Min Mat Slots Evolved 4 | . . 2 . . . 2 Power . | . . . . . . . Propulsion 1 | . . 1 . . . . Utility 2 | . . 1 . . . 1 Weapon 1 | . . . . . . 1 Parts Attached 56 | 6 3 10 4 4 5 24 Power 9 | 1 . 2 . 1 1 4 Engine 8 | 1 . 2 . 1 1 3 Core 1 | . . . . . . 1 Reactor . | . . . . . . . Propulsion 12 | 2 . 4 . . 2 4 Treads . | . . . . . . . Leg 3 | 2 . 1 . . . . Wheel 4 | . . . . . 2 2 Hover 2 | . . . . . . 2 Flight 3 | . . 3 . . . . Utility 13 | 1 1 2 . 1 2 6 Device 8 | . 1 1 . 1 1 4 Storage 1 | 1 . . . . . . Processor 2 | . . 1 . . 1 . Hackware . | . . . . . . . Protection 2 | . . . . . . 2 Artifact . | . . . . . . . Weapon 22 | 2 2 2 4 2 . 10 Energy Gun 7 | 1 2 . 2 1 . 1 Energy Cannon 2 | . . . . . . 2 Ballistic Gun 6 | 1 . 1 1 . . 3 Ballistic Cannon 1 | . . . . . . 1 Launcher 5 | . . 1 1 1 . 2 Special Weapon 1 | . . . . . . 1 Impact Weapon . | . . . . . . . Slashing Weapon . | . . . . . . . Piercing Weapon . | . . . . . . . Special Melee Weapon . | . . . . . . . Unidentified Prototypes 1 | . . . . 1 . . Parts Lost 21 | . . 2 1 . . 18 Power 3 | . . . . . . 3 Propulsion 6 | . . . . . . 6 Utility 5 | . . 1 . . . 4 Weapon 7 | . . 1 1 . . 5 Highest Loss Streak 13 | . . 2 1 . . 13 To Critical Strikes . | . . . . . . . Average Slot Usage (%) 88 | . 91 84 86 94 89 86 Engine 10 | . 14 10 11 11 11 8 Leg 9 | . 28 18 . . . . Wheel 8 | . . . . . 14 23 Flight 9 | . . 7 33 33 10 . Device 14 | . 5 19 11 17 14 16 Storage 4 | . 14 8 . . . . Processor 8 | . . . 11 11 17 15 Energy Gun 9 | . 14 9 4 10 11 5 Ballistic Gun 5 | . 13 . 5 . . 7 Launcher 6 | . . 10 10 10 11 4 Peak Build Rating 42 | 6 7 10 10 20 20 42 Average Rating 12 | 3 6 8 9 15 18 19 On Entrance 10 | . 6 7 10 10 20 18 Naked Turns . | . . . . . . . Heaviest Build 69 | 11 13 15 8 10 14 69 Greatest Support 49 | 20 20 30 12 12 37 49 Greatest Overweight (x) 6 | . . 1 2 . 3 6 Average Overweight (x) . | . . . . . . . Largest Inventory Capacity 8 | 8 8 8 5 5 5 5 Average Capacity 6 | 5 8 7 5 5 5 5 Most Carried 7 | 3 5 7 3 5 5 5 Average Carried 3 | 1 3 4 2 3 4 2 Final Capacity 8 | 8 8 5 5 5 5 5 Final Carried 5 | 2 5 2 2 5 4 . Class Distribution -------------------- 72% | Mutant 17% | Derelict-Skirmisher 8% | Derelict-Mutant Dominant Class ---------------- Mutant | -10/Materials Mutant | -9/Materials Mutant | -9/Mines Mutant | -9/Exiles Derelict-Mutant | -8/Mines Derelict-Skirmisher | -8/Materials Resources | -11 -10 -9 -9 -9 -8 -8 ----------- Run | Yrd Mat Mat Min Exi Min Mat Matter Collected 883 | 141 121 78 45 . 277 221 Remotely . | . . . . . . . Salvage Created 680 | . 121 218 23 . 37 281 Parts 60 | . 10 22 4 . 2 22 Haulers Intercepted 1 | . . . . . . 1 Recyclers Shooed 2 | . . 1 . . . 1 Parts Field Recycled . | . . . . . . . Retrieved Matter . | . . . . . . . Parts Self-Destructed . | . . . . . . . Prevented . | . . . . . . . Kills | -11 -10 -9 -9 -9 -8 -8 ------- Run | Yrd Mat Mat Min Exi Min Mat Combat Hostiles Destroyed 19 | . 2 6 3 . 1 7 Guns 10 | . 2 1 1 . . 6 AOE 9 | . . 5 2 . 1 1 Classes Destroyed 9 | . 2 4 . . 1 2 Worker 2 | . . . . . . 2 Builder 3 | . . 3 . . . . Hauler 1 | . . . . . . 1 Recycler 1 | . . 1 . . . . Watcher 3 | . 1 . . . . 2 Swarmer 7 | . . 2 3 . . 2 Grunt 8 | . 2 2 . . . 4 Sentry 2 | . . 2 . . . . Hunter 2 | . . . . . 1 1 Best Kill Streak 7 | . 2 5 3 . 1 7 Combat Bots Only 5 | . 2 4 3 . 1 5 Max Kills in Single Turn 3 | . 1 3 2 . 1 2 Gunslinging . | . . . . . . . Exploded 2 | . . 1 2 . 1 1 Melee . | . . . . . . . Uniques/NPCs Destroyed . | . . . . . . . Combat | -11 -10 -9 -9 -9 -8 -8 -------- Run | Yrd Mat Mat Min Exi Min Mat Hostile Shots Fired 283 | . 52 19 16 . 2 194 Missed 103 | . 21 7 6 . 1 68 Damage Taken 2347 | . 303 191 132 . 22 1699 Core 720 | . 66 50 51 . . 553 Absorbed by Shields . | . . . . . . . Regen/Repaired (Parts) 106 | . . . . . . 106 Core Remaining (%) 82 | 100 73 . . . 74 . Volleys Fired 67 | . 21 9 10 . 1 26 Largest 3 | . 2 2 2 . 2 3 Hottest 105 | . 60 70 80 . 80 105 Shots Fired 113 | . 42 15 14 . 2 40 Gun 90 | . 42 6 11 . 1 30 Cannon 3 | . . . . . . 3 Launcher 20 | . . 9 3 . 1 7 Special . | . . . . . . . Kinetic 50 | . 21 . 6 . . 23 Thermal 13 | . . . 5 . 1 7 Explosive 20 | . . 9 3 . 1 7 Electromagnetic 30 | . 21 6 . . . 3 Robot Hit Streak 7 | . 7 4 1 . 3 6 Robot Miss Streak 6 | . 2 4 2 . . 6 Penetration Max . | . . . . . . . Secondary Targets 1 | . 1 . . . . . Max Gunslinging Chain 1 | . 1 . . . . . Shots Hit Robots 66 | . 28 9 2 . 2 25 Core Hits 53 | . 6 17 3 . 2 25 Critical Kills . | . . . . . . . Critical Parts Destroyed 1 | . . . . . . 1 Critical Strikes 1 | . . . . . . 1 Destroy 1 | . . . . . . 1 Melee Attacks . | . . . . . . . Impact . | . . . . . . . Slashing . | . . . . . . . Piercing . | . . . . . . . Sneak Attacks . | . . . . . . . Combat Hostiles . | . . . . . . . Follow-up Attacks . | . . . . . . . Damage Inflicted 2083 | . 307 614 175 . 47 940 Guns 780 | . 307 63 10 . 13 387 Cannons 42 | . . . . . . 42 Explosions 1261 | . . 551 165 . 34 511 Melee . | . . . . . . . Ramming . | . . . . . . . Kinetic 477 | . 104 . 10 . . 363 Thermal 225 | . . . . . 13 212 Explosive 1073 | . . 551 165 . 34 323 Electromagnetic 308 | . 203 63 . . . 42 Impact . | . . . . . . . Slashing . | . . . . . . . Piercing . | . . . . . . . Highest Corruption 1 | . . . . . . 1 Average Corruption 1 | . . . . . . 1 Corruption Purged . | . . . . . . . Corruption Blocked . | . . . . . . . Effects 2 | . . . . . . 2 Message Errors 2 | . . . . . . 2 Overload Shots . | . . . . . . . Overflow Damage 164 | . . 7 43 . . 114 Projectiles . | . . . . . . . Explosions 164 | . . 7 43 . . 114 Melee . | . . . . . . . Knockbacks . | . . . . . . . Impact . | . . . . . . . Kinetic . | . . . . . . . Secondary . | . . . . . . . Self-Inflicted Damage 221 | . . 37 45 . . 139 Shots 5 | . . 1 1 . . 3 Rammed . | . . . . . . . Targets Rammed . | . . . . . . . Kicked . | . . . . . . . Crushed . | . . . . . . . Highest Temperature 138 | . 138 48 40 . 12 60 Average Temperature 38 | . 54 25 16 . 8 23 Received Heat Transfer 462 | . 120 63 . . . 279 Siege Activations . | . . . . . . . Robots Corrupted . | . . . . . . . Combat Hostiles . | . . . . . . . Parts Fried 1 | . 1 . . . . . Impact Corruptions . | . . . . . . . Robots Melted . | . . . . . . . Combat Hostiles . | . . . . . . . Parts Melted 1 | . . . . . . 1 Heat Transferred 211 | . . . . . 37 174 Parts Sabotaged . | . . . . . . . Parts Stolen . | . . . . . . . Parts Stripped . | . . . . . . . Power Chain Reactions . | . . . . . . . Alert | -11 -10 -9 -9 -9 -8 -8 ------- Run | Yrd Mat Mat Min Exi Min Mat Peak Influence 328 | . 106 320 215 . 51 328 Initial 124 | . . 44 124 . . 19 Average 103 | . 69 173 159 . 19 129 Maximum Alert Level 1 | . . 1 1 . . 1 Low Security (%) 80 | 100 100 46 62 . 100 79 Level 1 19 | . . 53 37 . . 20 Level 2 . | . . . . . . . Level 3 . | . . . . . . . Level 4 . | . . . . . . . Level 5 . | . . . . . . . High Security . | . . . . . . . Max Security . | . . . . . . . Squads Dispatched 7 | . 1 2 . . . 4 Investigation 4 | . 1 1 . . . 2 Extermination . | . . . . . . . Reinforcement 3 | . . 1 . . . 2 Assault . | . . . . . . . Garrison . | . . . . . . . Intercept . | . . . . . . . Searches Triggered . | . . . . . . . Construction Impeded . | . . . . . . . Haulers Reinforced . | . . . . . . . Active Scanning Responses . | . . . . . . . Cargo Convoy Interrupts . | . . . . . . . Stealth | -11 -10 -9 -9 -9 -8 -8 --------- Run | Yrd Mat Mat Min Exi Min Mat Distress Signals 4 | . . 2 . . . 2 Communications Jammed . | . . . . . . . Distress Signals . | . . . . . . . Times Spotted 55 | . 7 10 9 . 1 28 Peak Tracking Total 12 | . 3 5 4 . 1 12 Tactical Retreats 9 | . 1 3 2 . . 3 Traps | -11 -10 -9 -9 -9 -8 -8 ------- Run | Yrd Mat Mat Min Exi Min Mat Traps Triggered 2 | . 1 1 . . . . Indirectly . | . . . . . . . Trap Hack Attempts . | . . . . . . . Triggered . | . . . . . . . Disarmed . | . . . . . . . Reprogrammed . | . . . . . . . Reused . | . . . . . . . Traps Extracted . | . . . . . . . Installed . | . . . . . . . Triggered . | . . . . . . . Machines | -11 -10 -9 -9 -9 -8 -8 ---------- Run | Yrd Mat Mat Min Exi Min Mat Machines Disabled 5 | . . . . . 1 4 Max in Single Turn 2 | . . . . . 1 2 Machines Repaired . | . . . . . . . Machines Dismantled . | . . . . . . . Machines Sabotaged . | . . . . . . . Overloaded Fab Kills . | . . . . . . . Hacking | -11 -10 -9 -9 -9 -8 -8 --------- Run | Yrd Mat Mat Min Exi Min Mat Machines Accessed 10 | . 1 2 . 4 . 3 Terminals 4 | . 1 2 . . . 1 Fabricators . | . . . . . . . Repair Stations 1 | . . . . . . 1 Recycling Units 1 | . . . . . . 1 Scanalyzers . | . . . . . . . Garrison Access . | . . . . . . . Total Hacks 39 | . 5 4 . 22 . 8 Successful 38 | . 5 3 . 22 . 8 Failed 1 | . . 1 . . . . Catastrophic . | . . . . . . . Database Lockouts . | . . . . . . . Manual 7 | . 2 . . 4 . 1 Terminals 12 | . 5 4 . . . 3 Fabricators . | . . . . . . . Repair Stations 2 | . . . . . . 2 Recycling Units 3 | . . . . . . 3 Scanalyzers . | . . . . . . . Garrison Access . | . . . . . . . Terminal Hacks 33 | . 5 3 . 22 . 3 Record 32 | . 5 3 . 21 . 3 Derelict Proto ID Bank 1 | . . . . 1 . . Fabricator Hacks . | . . . . . . . Repair Station Hacks 2 | . . . . . . 2 Scan Component 1 | . . . . . . 1 Repair 1 | . . . . . . 1 Recycling Unit Hacks 3 | . . . . . . 3 Recycle Component 1 | . . . . . . 1 Process 1 | . . . . . . 1 Report Inventory 1 | . . . . . . 1 Scanalyzer . | . . . . . . . Garrison Access Hacks . | . . . . . . . Unauthorized Hacks . | . . . . . . . Terminals . | . . . . . . . Fabricators . | . . . . . . . Repair Stations . | . . . . . . . Recycling Units . | . . . . . . . Scanalyzers . | . . . . . . . Garrison Access . | . . . . . . . Data Cores Recovered . | . . . . . . . Used . | . . . . . . . Hacking Detections 5 | . . 2 . . . 3 Full Trace Events 2 | . . . . . . 2 Feedback Events 1 | . . . . . . 1 Corruption 1 | . . . . . . 1 Feedback Blocked . | . . . . . . . Robot Schematics Acquired . | . . . . . . . Robots Built . | . . . . . . . Authchips . | . . . . . . . Time . | . . . . . . . Total Robot Build Rating . | . . . . . . . Part Schematics Acquired . | . . . . . . . Parts Built . | . . . . . . . Authchips . | . . . . . . . Time . | . . . . . . . Total Part Build Rating . | . . . . . . . Parts Repaired 1 | . . . . . . 1 Time 38 | . . . . . . 38 Parts Recycled 1 | . . . . . . 1 Recycled Matter 464 | . . . . . . 464 Retrieved Matter . | . . . . . . . Retrieved Components . | . . . . . . . Parts Scanalyzed . | . . . . . . . Part Schematics Acquired . | . . . . . . . Parts Damaged . | . . . . . . . Bothacking | -11 -10 -9 -9 -9 -8 -8 ------------ Run | Yrd Mat Mat Min Exi Min Mat Used RIF Installer . | . . . . . . . Robots Hacked . | . . . . . . . Non-combat . | . . . . . . . Combat . | . . . . . . . Robot Hacks Applied . | . . . . . . . Relay Couplers Released . | . . . . . . . Fabnet Peak Effective % . | . . . . . . . Robots Rewired . | . . . . . . . Allies Hacked . | . . . . . . . Hacks Repelled . | . . . . . . . Allies | -11 -10 -9 -9 -9 -8 -8 -------- Run | Yrd Mat Mat Min Exi Min Mat Total Allies . | . . . . . . . Largest Group . | . . . . . . . Highest-Rated Group . | . . . . . . . Highest-Rated Ally . | . . . . . . . Total Orders . | . . . . . . . Ally Attacks . | . . . . . . . Total Damage . | . . . . . . . Kills . | . . . . . . . Allies Corrupted . | . . . . . . . Allies Melted . | . . . . . . . Intel | -11 -10 -9 -9 -9 -8 -8 ------- Run | Yrd Mat Mat Min Exi Min Mat Robot Analysis Total . | . . . . . . . Derelict Logs Recovered . | . . . . . . . Drone Launches . | . . . . . . . Drone Recoveries . | . . . . . . . Exploration | -11 -10 -9 -9 -9 -8 -8 ------------- Run | Yrd Mat Mat Min Exi Min Mat Turns Passed 1575 | 94 330 241 115 191 163 441 Spaces Moved 1748 | 71 220 236 173 529 247 272 Core 46 | 4 . . 27 . 1 14 Treads . | . . . . . . . Legs 413 | 67 220 126 . . . . Wheels 355 | . . . . . 103 252 Hover 6 | . . . . . . 6 Flight 928 | . . 110 146 529 143 . Fastest Speed 34 | 50 120 34 34 34 34 50 Average Speed 68 | 116 120 81 49 34 60 93 Slowest Speed 350 | 120 120 120 150 34 200 350 Overloaded Moves . | . . . . . . . Propulsion Burnouts . | . . . . . . . Robots Hopped 6 | . . . 5 . 1 . Cave-ins Triggered . | . . . . . . . Exploration Rate (%) 34 | 4 30 21 33 91 41 20 Regions Visited 6 Branch Regions 3 Pre-discovered Areas . | . . . . . . . Known Exits Taken . | . . . . . . . Unknown Exits Taken 6 | 1 1 1 1 1 1 . Scrap Searched 2 | . . . 1 . 1 . Spaces Dug . | . . . . . . . Terrain Destroyed 216 | . . 64 36 . 6 110 Melee . | . . . . . . . Projectile . | . . . . . . . AOE 216 | . . 64 36 . 6 110 Terrain Rammed . | . . . . . . . Walls Destroyed . | . . . . . . . Machines Disabled . | . . . . . . . Actions | -11 -10 -9 -9 -9 -8 -8 --------- Run | Yrd Mat Mat Min Exi Min Mat Total 2002 | 81 246 270 183 539 261 422 Wait 94 | . . 5 . . . 89 Move 1730 | 70 219 235 162 528 244 272 Hop 6 | . . . 5 . 1 . Pick Up 21 | 5 3 5 1 3 2 2 Fast Attach 24 | 3 1 1 . 3 3 13 Attach 24 | 3 . 7 2 . 1 11 Detach 9 | . . . 1 . . 8 Swap 8 | . 2 2 2 1 1 . Drop 19 | . . 6 . 4 8 1 Fire 67 | . 21 9 10 . 1 26 Melee . | . . . . . . . Ram . | . . . . . . . Kick . | . . . . . . . Crush . | . . . . . . . Escape Stasis . | . . . . . . . Rewire . | . . . . . . . Trap . | . . . . . . . Miscellaneous . | . . . . . . . Route ------- -11/Scrapyard -10/Materials (discovered 2 exits: *Mat / [*Min]) -9/Materials (discovered 2 exits: [*Min x2]) -9/Mines -9/Exiles (discovered 2 exits: [*Min x2]) -8/Mines -8/Materials History --------- Turn | Location | Event 2 | -11/Scrapyard | Discovered new exit (range 16) 95 | -11/Scrapyard | Entered Materials 112 | -10/Materials | Discovered new exit (range 15) 307 | -10/Materials | Build established: Mutant 417 | -10/Materials | Discovered new exit (range 5) 425 | -10/Materials | Entered another Materials area 425 | -9/Materials | Evolved 2 slots: Propulsion x1, Utility x1 543 | -9/Materials | Discovered new exit (range 7) 658 | -9/Materials | Discovered new exit (range 11) 666 | -9/Materials | Entered Mines 779 | -9/Mines | Deemed a non-threat by the Exiles lab entrance 779 | -9/Mines | Discovered new exit (range 5) 781 | -9/Mines | Entered Exiles 786 | -9/Exiles | Discovered new exit (range 16) 790 | -9/Exiles | Met 8R-AWN 795 | -9/Exiles | Met EX-HEX 812 | -9/Exiles | Met EX-BIN 846 | -9/Exiles | Aligned with FarCom system 846 | -9/Exiles | Given EX-Vault access code 856 | -9/Exiles | Opened EX-Vault 858 | -9/Exiles | Found Prototype Device 858 | -9/Exiles | Identified Skeleton Box 861 | -9/Exiles | Found Deploy-a-Sentry 862 | -9/Exiles | Found Deploy-a-Sentry 866 | -9/Exiles | Found AWS/Autocannon 881 | -9/Exiles | Warned to stay clear of 0b10 Research branches 895 | -9/Exiles | Met EX-DEC 910 | -9/Exiles | Visited The Gauntlet 969 | -9/Exiles | Discovered new exit (range 12) 972 | -9/Exiles | Stole three prototypes: Skeleton Box, AWS/Autocannon, Deploy-a-Sentry 972 | -9/Exiles | Entered Mines 1021 | -8/Mines | Found DCF Scrap (12 items) 1126 | -8/Mines | Discovered new exit (range 8) 1135 | -8/Mines | Entered Materials 1135 | -8/Materials | Evolved 2 slots: Utility x1, Weapon x1 1487 | -8/Materials | Lost 5 parts (1p1n1u2w) 1513 | -8/Materials | Repaired Hpw. Shotgun 1546 | -8/Materials | Core integrity fell below 50% 1564 | -8/Materials | Core integrity fell below 20% 1576 | -8/Materials | Destroyed by S-10 Pest with Light Assault Rifle Last Messages --------------- 01565_ U-05 Engineer lays Concrete. 01566_ U-05 Engineer destroyed. 01566_ U-05 Engineer lays Concrete. 01566_ X-57 Shotgunner destroyed. 01566_ R-06 Scavenger collects Wheel. 01567_ U-05 Engineer lays Concrete. 01567_ Acquired Welding Torch. 01567_ U-05 Engineer lays Concrete. 01568_ U-05 Engineer builds a Wall. 01568_ U-05 Engineer lays Concrete. 01568_ Acquired 27 matter. 01569_ U-05 Engineer lays Concrete. 01569_ R-06 Scavenger collects Hrd. Medium Armor Plating. 01570_ Backup Propulsion I destroyed. 01570_ U-05 Engineer lays Concrete. 01571_ Critical hit (Burn: +37). 01571_ Welding Torch destroyed. 01574_ ALERT: Suspicious intruders detected, dispatching Cutter reinforcements to area. Map ----- +----------------------------------------------------+ | ?????????????????????????????????????????????????? | | ?????????????????????????????????????????????????? | | ?????????????????????????????????????????????????? | | ?????????????????????????????????????????????????? | | ?????????????????????????????????????????????????? | | ?????????????????????????????????????????????????? | | ?????????????????????????????????????????????????? | | ?????????????????????????????????????????????????? | | ?????????????????????????????????????????????????? | | ?????????????????????????????????????????????????? | | ?????????????????????????????????????????????????? | | ?????????????????????????????????????????????????? | | ?????????????????????????????????????????????????? | | ?????????????????????????????????????????????????? | | ?????????????????????????????????????????????????? | | ?????????????????????????????????????????????????? | | ?????????????????w???????????????????????????????? | | ?????????????????????????????????????????????????? | | ?????????????????????????????????????????????????? | | ???????????????#??????###+###????????????????????? | | ???????????????# ###### #######??????????????? | | ????????????????? k ???????????????? | | ??????????????????? Y ?????H???????????? | | ????????????????????? ???????????????????? | | ??????????????????????# sss #????????????????????? | | ???????????????????????#s@s#?????????????????????? | | ???????????????????????# #?????????????????????? | | ??????????????Y????????# #??w??????????????????? | | ???????????????????????# #?????????????????????? | | ???????????????????????# #?????????????????????? | | ???????????????????????# ##########????????????? | | ???????????????????????# # "" ###??????????? | | ???????????????????????# # ! #??????????? | | ???????????????????????# r#! #??????????? | | ???????????????????????#% x# = = #??????????? | | ???????????????????????# +! g g #??????????? | | ???????????????????????# #% !g "%" ??? | | ???????????????????????# # * ### | | ?????????????????????###%% # #???? ### | | ####?????????????????# # %# #??????##??? | | #?????????????????# # ### #??????????? | | "?????????????????# # ###### ###??????????? | | ?????????????????# # %##???#####????????????? | | "?????????????????### =##????????????????????? | | #??????????????????##! ##????????????????????? | | #???????????????????# ##????????????????????? | | #####???????????????# #?????????????????????? | | !!#???????????????# #?????????????????????? | | !!#???????????????# #?????????????????????? | | !!#???????????????# #?????????????????????? | +----------------------------------------------------+ Best States ------------- Heat Dissipation 31 Energy Generation 14 Energy Capacity 275 Matter Stores 300 Matter Capacity 300 Sight Range 18 Robot Scan Range 15 Terrain Scan Density 10 ECM Strength 1 Additional Mass Support 9 Armor Coverage 80 Evasion (%) 63 Targeting Accuracy 5 Item Schematics ----------------- None Robot Schematics ------------------ None Fabricated ------------ Nothing Alien Tech Used ----------------- None Achievements -------------- Let's See Who's Tougher Loot Pinata Remodeling Challenges ------------ None Game ------ Seed ZioniteShrapnelTearclaws Manual? 0 Play Time 00:52:27 Cumulative 3.1 hours Start 2025.03.03 @ 12:30:44 End 2025.03.06 @ 14:40:29 Sessions 3 Manual Loads 0 Difficulty Rogue Special Mode None Game No. 4 Rogue 4 Adventurer 0 Explorer 0 Win Type - Total 0 Types 0/0/0/0/0/0/0/0/0 Lore% 8 Gallery% 5 Achievement% 6 Wizard Run 0 Options --------- Layout 1 ASCII 1 Keyboard 1 Movement Vi Keybinds 0 Fullscreen 1 Font 24/Smallcaps Map View 50x35 Zoom Use 1% Tactical HUD 1 Map Filters NONE Filters NONE Steam 0 RUN: 7fcb8d4e-66c7-41d6-aafc-a787df781783